fUSD/lending_fUSD_20240906
["ID","MTS","AMOUNT","RATE_DAILY","PERIOD"]
[337416857,1725657046662,-36041.95659136,0.00015,2]
[337416858,1725657046674,-1996.73017479,0.00015,2]
[337416859,1725657046685,-8901.18086874,0.00015,2]
[337416860,1725657046697,-765.67486631,0.00015,2]
[337416861,1725657046708,-324.95834368,0.00015,2]
[337416862,1725657046719,-2457.38273895,0.00015,2]
[337416863,1725657046730,-1434.79165165,0.00015,2]
[337416864,1725657046741,-569.62893995,0.00015,2]
[337416865,1725657046754,-3194.03000004,0.00015,2]
[337416866,1725657046769,-45837.97606378,0.00015,2]
[337416867,1725657046781,-1644.15644672,0.00015,2]
[337416868,1725657046792,-500.0,0.00015,2]
[337416869,1725657046804,-1281.94968679,0.00015,2]
[337416870,1725657046816,-4839.08149021,0.00015,2]
[337416871,1725657046827,-312.70621,0.00015,2]
[337416872,1725657046839,-48751.96682396,0.00015,2]
[337416873,1725657046853,-6154.01807628,0.00015,2]
[337416874,1725657046910,-4527.64319998,0.00015,2]
[337416875,1725657046921,-23938.32502418,0.00015,2]
[337416876,1725657046932,-3187.19048631,0.00015,2]
[337416877,1725657046946,-6676.43119304,0.00015,2]
[337416879,1725657194322,259.8,0.00010959,2]
[337416880,1725657325176,1000.0,0.00031448,30]
[337416881,1725657360421,635.55,0.00011799,2]
[337416882,1725657662420,12888.0,0.00031417,120]
[337416888,1725657729735,1610.4172241,0.00031417,30]
[337416889,1725657744677,162.29,0.00010959,2]
[337416899,1725657765390,3000.0,0.00031417,30]
[337416900,1725657820215,9000.0,0.00031417,30]
[337416901,1725657832428,1479466.48,0.00031417,30]
[337416902,1725657882588,45376.72262789,0.00031417,30]
[337416903,1725657938302,12713.03364734,0.00031417,30]
[337416904,1725657942752,688.84,0.00011097,2]
[337416909,1725658080749,452.40450032,0.0001,2]
[337416910,1725658083732,184.12540866,0.00010999,2]
[337416912,1725658084221,780.81155112,0.00012,2]
[337416940,1725658232280,-332.79,0.00012141,2]
[337416941,1725658232290,-86.11217464,0.00012174,2]
[337416942,1725658232456,-186.37782536,0.00012174,2]
[337416943,1725658232466,-155.04847562,0.00012196,2]
[337416944,1725658232477,-192.51152438,0.00012196,2]
[337416945,1725658232486,-257.07,0.00012214,2]
[337416946,1725658232499,-493.55,0.00012236,2]
[337416947,1725658232508,-500.0,0.000123,2]
[337416948,1725658232517,-2468.276377,0.00012826,2]
[337416949,1725658232526,-228.67,0.00012891,2]
[337416950,1725658232535,-321.85371771,0.000129,2]
[337416951,1725658232544,-175.20021134,0.000129,2]
[337416952,1725658232553,-236.45909106,0.000129,2]
[337416953,1725658232563,-2038.9059,0.000129,2]
[337416954,1725658232572,-1114.9301,0.000129,2]
[337416956,1725658232581,-150.40531348,0.00012905,2]
[337416957,1725658232590,-499.99,0.00012905,2]
[337416959,1725658232599,-401.53,0.00012928,2]
[337416961,1725658232609,-250.0,0.0001297,2]
[337416963,1725658232618,-500.0,0.00012973,2]
[337416965,1725658232627,-153.19,0.00012989,2]
[337416967,1725658232636,-151.9,0.0001299,2]
[337416969,1725658232645,-250.0,0.00012996,2]
[337416970,1725658232653,-285.23363794,0.00012999,2]
[337416971,1725658232663,-300.0,0.00012999,2]
[337416972,1725658232671,-150.0,0.00012999,2]
[337416973,1725658232680,-8940.90608221,0.00013,2]
[337416974,1725658232693,-3509.06959599,0.00013,2]
[337416975,1725658232706,-966.03305,0.00013,2]
[337416976,1725658232719,-277.9595,0.00013,2]
[337416977,1725658232730,-1096.48125041,0.00013,2]
[337416978,1725658232755,-271551.12596311,0.00013,2]
[337416979,1725658232766,-508.47198714,0.00013,2]
[337416982,1725658238341,-544.37084928,0.00013,2]
[337416983,1725658238455,-3333.08070507,0.00013,2]
[337416984,1725658238585,-207.65701732,0.00013,2]
[337416985,1725658238686,-1804.2,0.00013,2]
[337416989,1725658240604,-1872.91695005,0.00013,2]
[337416990,1725658240667,-32991.37224146,0.00013,2]
[337416991,1725658240787,-52076.10615691,0.00013,2]
[337417012,1725658243239,190.59,0.00013306,30]
[337417014,1725658243336,-550.37500001,0.00013,2]
[337417015,1725658244450,-534.33,0.00013,2]
[337417016,1725658244460,-879.29385289,0.00013,2]
[337417017,1725658244476,-48690.94124141,0.00013,2]
[337417019,1725658246611,-329.968208,0.00013,2]
[337417020,1725658246672,-312.486,0.00013,2]
[337417021,1725658246796,-2056.25387331,0.00013,2]
[337417022,1725658246807,-549.8,0.00013,2]
[337417023,1725658246819,-389.91462076,0.00013,2]
[337417024,1725658246862,-7704.42628152,0.00013,2]
[337422044,1725658444524,821.06,0.00011041,2]
[337422046,1725658514126,160.87,0.00010959,2]
[337422048,1725658531362,750.0,0.00011,2]
[337422049,1725658613194,2032.0,0.00027,120]
[337422050,1725658748411,181.06,0.0001256,30]
[337422051,1725658954362,857.45,0.00010189,2]
[337422052,1725659014369,289.57,0.00010959,2]
[337422053,1725659029444,242.03,0.00011988,2]
[337422062,1725659148259,231.59,0.0001196,2]
[337422063,1725659211490,243.5,0.00011987,2]
[337422064,1725659221827,474.51,0.0001194,2]
[337422065,1725659227439,150.0,0.00011688,2]
[337422536,1725659310190,152.92,0.00012001,2]
[337422537,1725659421791,172.0,0.00012248,30]
[337422559,1725659431584,-250.0,0.00012012,2]
[337422561,1725659431594,-405.79,0.00012029,2]
[337422563,1725659431603,-154.02,0.00012029,2]
[337422564,1725659431612,-200.0,0.00012029,2]
[337422565,1725659431622,-250.0,0.00012048,2]
[337422566,1725659431631,-150.0,0.00012052,2]
[337422567,1725659431640,-844.67,0.00012083,2]
[337422568,1725659431650,-168.73,0.0001222,2]
[337422569,1725659431659,-250.0,0.00012222,2]
[337422570,1725659431669,-176.9,0.00012315,2]
[337422571,1725659431678,-1000.0,0.00012341,2]
[337422572,1725659431688,-480.27,0.00012348,2]
[337422573,1725659431697,-499.99,0.00012348,2]
[337422574,1725659431707,-857.45,0.00012453,2]
[337422575,1725659431717,-388.4706407,0.00012652,2]
[337422576,1725659431726,-300.6093593,0.00012899,2]
[337422768,1725659439774,-33.8796407,0.00012899,2]
[337422769,1725659439783,-150.0,0.00012899,2]
[337422770,1725659439792,-300.0,0.00012899,2]
[337422771,1725659439801,-160.36941333,0.000129,2]
[337422772,1725659439811,-1916.85637125,0.000129,2]
[337422773,1725659439825,-2414.47484465,0.000129,2]
[337422774,1725659439836,-3810.54013007,0.000129,2]
[337422775,1725659439847,-711.3485025,0.000129,2]
[337422777,1725659439859,-10126.12732249,0.000129,2]
[337422779,1725659439871,-19149.94822904,0.000129,2]
[337422780,1725659439880,-701.8361,0.000129,2]
[337422782,1725659439890,-997.4084,0.000129,2]
[337422784,1725659439901,-171.72522309,0.000129,2]
[337422786,1725659439910,-1302.32522417,0.000129,2]
[337422788,1725659439920,-189.55387216,0.000129,2]
[337422790,1725659439929,-157.63939404,0.000129,2]
[337422792,1725659439938,-176.41729731,0.000129,2]
[337422794,1725659439947,-500.0,0.00012973,2]
[337422796,1725659439957,-175.85,0.00012981,2]
[337422797,1725659439966,-151.66,0.0001299,2]
[337422798,1725659439975,-500.0,0.00012999,2]
[337422799,1725659439986,-500.0,0.00012999,2]
[337422801,1725659439995,-199.30226172,0.00012999,2]
[337422803,1725659440003,-500.0,0.00012999,2]
[337422805,1725659440013,-500.0,0.00012999,2]
[337422807,1725659440022,-500.0,0.00012999,2]
[337422809,1725659440031,-414.02217803,0.00012999,2]
[337422811,1725659440041,-582.0,0.00013,2]
[337422813,1725659440050,-354461.16737704,0.00013,2]
[337422815,1725659440061,-356.19588052,0.00013,2]
[337422817,1725659440072,-3895.58825898,0.00013,2]
[337422820,1725659440090,-355.72425126,0.00013,2]
[337422822,1725659440102,-1127.92651515,0.00013,2]
[337422840,1725659440269,-24912.89410395,0.00013,2]
[337422842,1725659440280,-682.60523184,0.00013,2]
[337422845,1725659440291,-745.89233304,0.00013,2]
[337422847,1725659440302,-255.34886214,0.00013,2]
[337422849,1725659440313,-1880.869946,0.00013,2]
[337422851,1725659440324,-862.38755415,0.00013,2]
[337422853,1725659440334,-1490.63916087,0.00013,2]
[337422855,1725659440346,-480592.74541096,0.00013,2]
[337422858,1725659440360,-9000.26200128,0.00013,2]
[337422860,1725659440371,-4807.45079669,0.00013,2]
[337422862,1725659440382,-22057.0,0.00013,2]
[337422882,1725659442594,-579.35,0.00013,2]
[337422883,1725659442606,-491.59824037,0.00013,2]
[337422884,1725659442617,-368.36581263,0.00013,2]
[337422885,1725659442627,-2285.82171714,0.00013,2]
[337422886,1725659442638,-574.40904998,0.00013,2]
[337422889,1725659443750,-3172.2818176,0.00013,2]
[337422890,1725659443761,-1668.02297108,0.00013,2]
[337422891,1725659443773,-489.18296135,0.00013,2]
[337422892,1725659443784,-362.76485203,0.00013,2]
[337422893,1725659443799,-5958.007393,0.00013,2]
[337422894,1725659443811,-9012.60170715,0.00013,2]
[337422895,1725659443825,-773.9542217,0.00013,2]
[337422896,1725659443836,-443.86505166,0.00013,2]
[337422897,1725659443847,-9244.6143912,0.00013,2]
[337422898,1725659443859,-1067.81353758,0.00013,2]
[337422899,1725659443870,-455.24917089,0.00013,2]
[337422900,1725659443881,-36096.65073552,0.00013,2]
[337422901,1725659443892,-530.05992504,0.00013,2]
[337422902,1725659443905,-3139.95900893,0.00013,2]
[337422903,1725659443920,-242992.47263957,0.00013,2]
[337422904,1725659443932,-12754.46134342,0.00013,2]
[337422905,1725659443943,-2467.1499995,0.00013,2]
[337422906,1725659443955,-2558.2578458,0.00013,2]
[337422907,1725659443965,-483.01750003,0.00013,2]
[337422908,1725659443976,-8739.00278943,0.00013,2]
[337422909,1725659443987,-373.5132,0.00013,2]
[337422910,1725659443998,-1267.53629767,0.00013,2]
[337422916,1725659445672,-392.18531531,0.00013,2]
[337422917,1725659445685,-889.11610526,0.00013,2]
[337422918,1725659445696,-1189.02918722,0.00013,2]
[337422919,1725659445708,-15553.24533523,0.00013,2]
[337422920,1725659445719,-335.23446328,0.00013,2]
[337422921,1725659445730,-1078.57073008,0.00013,2]
[337422922,1725659445741,-508.5,0.00013,2]
[337422923,1725659445751,-2733.38035353,0.00013,2]
[337422924,1725659445762,-904.64662748,0.00013,2]
[337422925,1725659445773,-7000.092765,0.00013,2]
[337422926,1725659445829,-1280.81103182,0.00013,2]
[337422927,1725659445842,-17614.77864084,0.00013,2]
[337422928,1725659445856,-300.025825,0.00013,2]
[337422929,1725659445869,-1226.1823049,0.00013,2]
[337422930,1725659445885,-1602.75509516,0.00013,2]
[337422931,1725659445898,-4994.61127258,0.00013,2]
[337422932,1725659445911,-555.0,0.00013,2]
[337422933,1725659445934,-360.08234564,0.00013,2]
[337422934,1725659445946,-2800.21661438,0.00013,2]
[337422935,1725659445958,-581.02513369,0.00013,2]
[337422936,1725659445969,-914.18041574,0.00013,2]
[337422937,1725659445981,-1325.98466,0.00013,2]
[337422938,1725659445992,-265.16453152,0.00013,2]
[337422939,1725659446002,-588286.19110396,0.00013,2]
[337422940,1725659446013,-442876.17959202,0.00013,2]
[337422941,1725659446023,-1246.58900404,0.00013,2]
[337422942,1725659447133,-66479.92459063,0.00013,2]
[337422943,1725659447148,-102433.03344653,0.00013,2]
[337422951,1725659509305,154.81,0.00010959,2]
[337422952,1725659642054,845.28,0.00010974,2]
[337422953,1725659650230,500.0,0.000123,2]
[337422954,1725659769718,502.12,0.00012039,2]
[337422955,1725659795785,250.0,0.00012033,2]
[337422956,1725659814022,164.91,0.00012103,2]
[337422957,1725659853947,2582.88,0.00012099,2]
[337422958,1725659854137,1000.0,0.00012003,2]
[337422960,1725659895708,397.29,0.00012003,2]
[337422961,1725659925694,163.4,0.00012204,30]
[337422964,1725659983392,250.0,0.00011972,2]
[337422965,1725660029952,250.0,0.00011979,2]
[337422966,1725660045534,1800.0,0.00011993,2]
[337422967,1725660085630,198.97,0.00010959,2]
[337422969,1725660126887,871.58,0.00010113,2]
[337422970,1725660237682,181.79,9.627e-05,2]
[337422971,1725660298738,250.0,0.00012001,2]
[337422972,1725660332342,251.06,0.00012001,2]
[337422973,1725660333707,750.0,0.00011,2]
[337422974,1725660387334,200.0,0.00011996,2]
[337422975,1725660428656,1000.0,0.00027,120]
[337423112,1725660496632,-244.68,0.00012009,2]
[337423113,1725660496655,-250.0,0.00012009,2]
[337423114,1725660557607,155.23,0.00012263,30]
[337423359,1725660631790,-168.73,0.00012044,2]
[337423360,1725660631806,-549.0,0.00012098,2]
[337423361,1725660631816,-728.55093608,0.00012099,2]
[337423362,1725660631829,-537.34906392,0.00012099,2]
[337423363,1725660631839,-1891.8789498,0.000123,2]
[337423364,1725660631851,-437.5652523,0.00012376,2]
[337423365,1725660631864,-434.0147477,0.00012376,2]
[337423366,1725660631875,-388.47064071,0.0001266,2]
[337423367,1725660631886,-2101.9998,0.000127,2]
[337423368,1725660631899,-154.27,0.00012855,2]
[337423369,1725660631909,-154.27,0.0001286,2]
[337423370,1725660631919,-154.27,0.00012866,2]
[337423371,1725660631930,-1511.47,0.0001287,2]
[337423372,1725660631941,-1582.0424,0.0001287,2]
[337423373,1725660631951,-1582.0424,0.0001287,2]
[337423374,1725660631962,-1582.04241,0.0001287,2]
[337423375,1725660631973,-1582.0424,0.0001287,2]
[337423376,1725660631983,-154.27,0.00012872,2]
[337423377,1725660631994,-154.27,0.00012878,2]
[337423378,1725660632004,-154.27,0.00012884,2]
[337423379,1725660632015,-154.27,0.0001289,2]
[337423380,1725660632025,-154.27,0.00012895,2]
[337423381,1725660632036,-335.4322,0.000129,2]
[337423382,1725660632054,-1860.4546,0.000129,2]
[337423383,1725660632064,-1000.0,0.000129,2]
[337423384,1725660632075,-160.36941333,0.000129,2]
[337423385,1725660632085,-1150.24652126,0.000129,2]
[337423386,1725660632099,-561.75930824,0.000129,2]
[337423387,1725660632113,-377.86782155,0.000129,2]
[337423388,1725660632129,-343.5669242,0.000129,2]
[337423389,1725660632141,-916.50168511,0.000129,2]
[337423390,1725660632154,-594.47658,0.000129,2]
[337423391,1725660632168,-5816.4242292,0.000129,2]
[337423392,1725660632183,-433.3112172,0.000129,2]
[337423393,1725660632196,-482.99531256,0.000129,2]
[337423394,1725660632219,-16079.02632499,0.000129,2]
[337423395,1725660632233,-727.73898001,0.000129,2]
[337423405,1725660635558,154.29,0.00010959,2]
[337423407,1725660637748,-1351.70136552,0.000129,2]
[337423408,1725660637761,-7654.46792279,0.000129,2]
[337423409,1725660637855,-12851.8,0.000129,2]
[337423410,1725660637868,-1710.00000005,0.000129,2]
[337423411,1725660638071,-6054.62790732,0.000129,2]
[337423412,1725660638082,-150.0,0.000129,2]
[337423413,1725660638091,-150.0,0.000129,2]
[337423414,1725660638102,-150.0,0.000129,2]
[337423415,1725660638112,-150.0,0.000129,2]
[337423416,1725660638122,-1583.5,0.000129,2]
[337423417,1725660638131,-150.0,0.000129,2]
[337423418,1725660638346,-150.0,0.000129,2]
[337423419,1725660638358,-150.0,0.000129,2]
[337423420,1725660638368,-171.72522308,0.000129,2]
[337423421,1725660638378,-150.0,0.000129,2]
[337423422,1725660638387,-791.93,0.000129,2]
[337423424,1725660638397,-150.0,0.000129,2]
[337423426,1725660638406,-150.0,0.000129,2]
[337423427,1725660638416,-150.0,0.000129,2]
[337423429,1725660638425,-791.93,0.000129,2]
[337423430,1725660638434,-150.0,0.000129,2]
[337423431,1725660638444,-150.0,0.000129,2]
[337423432,1725660638453,-150.0,0.000129,2]
[337423433,1725660638462,-150.0,0.000129,2]
[337423434,1725660638471,-293.64,0.000129,2]
[337423435,1725660638481,-150.0,0.000129,2]
[337423436,1725660638490,-150.0,0.000129,2]
[337423437,1725660638500,-150.0,0.000129,2]
[337423438,1725660638509,-150.0,0.000129,2]
[337423439,1725660638518,-171.25223682,0.000129,2]
[337423440,1725660638528,-154.27,0.00012901,2]
[337423441,1725660638537,-154.27,0.00012907,2]
[337423442,1725660638546,-154.27,0.00012913,2]
[337423443,1725660638557,-154.27,0.00012919,2]
[337423444,1725660638566,-500.0,0.00012973,2]
[337423445,1725660638575,-298.104,0.0001299,2]
[337423446,1725660638584,-151.54,0.0001299,2]
[337423447,1725660638594,-28764.67063278,0.00013,2]
[337423448,1725660638606,-8761.63231516,0.00013,2]
[337423449,1725660638618,-1044.71571817,0.00013,2]
[337423450,1725660638630,-705.3146958,0.00013,2]
[337423451,1725660638641,-281.05968649,0.00013,2]
[337423452,1725660638652,-339.1733676,0.00013,2]
[337423453,1725660638663,-758.11221771,0.00013,2]
[337423454,1725660638675,-1200.0,0.00013,2]
[337423456,1725660639843,-3419.99457149,0.00013,2]
[337423457,1725660639871,-430.83949475,0.00013,2]
[337423458,1725660640035,-1614.56158587,0.00013,2]
[337423459,1725660640046,-1224.37909257,0.00013,2]
[337423460,1725660640058,-539.26186,0.00013,2]
[337423461,1725660640073,-1904.70340738,0.00013,2]
[337423472,1725660643471,-59763.23221277,0.00013,2]
[337423473,1725660643481,-594.17,0.00013,2]
[337423474,1725660643492,-9308.27000008,0.00013,2]
[337423475,1725660643503,-1399.85650094,0.00013,2]
[337423476,1725660643514,-1056.06830296,0.00013,2]
[337423477,1725660643525,-8637.56064,0.00013,2]
[337423480,1725660645879,-509.51025606,0.00013,2]
[337423481,1725660646002,-940.87063428,0.00013,2]
[337423482,1725660646014,-2604.9921,0.00013,2]
[337423483,1725660646026,-1359.7479913,0.00013,2]
[337423484,1725660646038,-260.62480604,0.00013,2]
[337423485,1725660646087,-466.61451776,0.00013,2]
[337423486,1725660646100,-564.50293122,0.00013,2]
[337423492,1725660751911,380.95773749,0.00027,120]
[337423493,1725660800937,2478.0059,0.00011944,2]
[337423494,1725660805657,1000.0,0.00027,120]
[337423495,1725660844581,150.0,0.00027,120]
[337423496,1725660848044,150.0,0.00027,120]
[337423497,1725660848748,150.0,0.00027,120]
[337423498,1725660849326,150.0,0.00027,120]
[337423499,1725660849974,150.0,0.00027,120]
[337423500,1725660850592,150.0,0.00027,120]
[337423501,1725660851299,150.0,0.00027,120]
[337423502,1725660853583,150.0,0.00027,120]
[337423503,1725660854566,150.0,0.00027,120]
[337423504,1725660855291,150.0,0.00027,120]
[337423505,1725660879581,912.95,0.0001101,2]
[337423506,1725660880773,275.577686,0.00027,120]
[337423507,1725660943908,2000.0,0.00027,120]
[337423508,1725661214106,155.23,0.00013077,30]
[337423510,1725661396850,2061.351966,0.00026643,120]
[337423511,1725661399886,505.186253,0.00025643,120]
[337423512,1725661400773,926.35,0.0001054,2]
[337423513,1725661403477,500.0,0.00025349,120]
[337423514,1725661403921,500.0,0.00026555,120]
[337423515,1725661412576,200.0,0.00024143,120]
[337423517,1725661530413,579.94515437,0.000101,2]
[337423518,1725661537007,486.19157988,9.5e-05,2]
[337423519,1725661562380,160.7470396,9e-05,2]
[337423520,1725661573989,300.0,0.00012,2]
[337423521,1725661619896,162.06,0.00010959,2]
[337423526,1725661718817,211.39066821,0.0001,2]
[337423532,1725661749096,200.0,0.0001194,2]
[337423876,1725661831944,-250.0,0.00012402,2]
[337423877,1725661831955,-94.40721085,0.00012443,2]
[337423878,1725661831971,-79.28278915,0.00012443,2]
[337423879,1725661831984,-251.06,0.00012459,2]
[337423880,1725661831996,-297.49,0.00012467,2]
[337423881,1725661832007,-290.4425409,0.000125,2]
[337423882,1725661832017,-158.05664954,0.00012512,2]
[337423883,1725661832054,-91.94335046,0.00012512,2]
[337423884,1725661832065,-164.93,0.00012576,2]
[337423885,1725661832076,-1000.0,0.00012622,2]
[337423886,1725661832086,-853.28316385,0.00012804,2]
[337423887,1725661832099,-73.06683615,0.00012804,2]
[337423888,1725661832110,-175.68192,0.0001287,2]
[337423889,1725661832122,-171.27,0.00012896,2]
[337423890,1725661832134,-37.27294464,0.00012899,2]
[337423891,1725661832148,-262.72705536,0.00012899,2]
[337423892,1725661832158,-0.68320702,0.000129,2]
[337423896,1725661834990,155.23,0.00013182,30]
[337423903,1725661837943,-175.92593964,0.000129,2]
[337423904,1725661837954,-903.42316209,0.000129,2]
[337423905,1725661837968,-9987.90608371,0.000129,2]
[337423906,1725661837980,-8667.8507542,0.000129,2]
[337423907,1725661837991,-7790.964,0.000129,2]
[337423908,1725661838001,-6078.36526941,0.000129,2]
[337423909,1725661838014,-618.75914436,0.000129,2]
[337423910,1725661838026,-16365.39999998,0.000129,2]
[337423911,1725661838038,-23640.24197103,0.000129,2]
[337423912,1725661838062,-914.81898883,0.000129,2]
[337423913,1725661838075,-515.37635187,0.000129,2]
[337423914,1725661838099,-420.0,0.000129,2]
[337423915,1725661838112,-450.95372915,0.000129,2]
[337423916,1725661838125,-433.67545991,0.000129,2]
[337423917,1725661838138,-5200.0,0.000129,2]
[337423918,1725661838150,-882.6,0.000129,2]
[337423919,1725661838162,-796.44791203,0.000129,2]
[337423920,1725661838175,-3060.15071266,0.000129,2]
[337423921,1725661838187,-2969.04,0.000129,2]
[337423922,1725661838199,-3042.31669276,0.000129,2]
[337423923,1725661838212,-1569.45816948,0.000129,2]
[337423924,1725661838226,-537.0,0.000129,2]
[337423925,1725661838246,-11929.18119598,0.000129,2]
[337423932,1725661839960,-12711.44730255,0.000129,2]
[337423933,1725661839972,-2494.17257457,0.000129,2]
[337423934,1725661839985,-1032.75,0.000129,2]
[337423935,1725661839998,-6467.15612543,0.000129,2]
[337423936,1725661840009,-158.39331482,0.000129,2]
[337423937,1725661840020,-2061.3839,0.000129,2]
[337423938,1725661840031,-1637.45571819,0.000129,2]
[337423939,1725661840042,-2500.0,0.000129,2]
[337423940,1725661840052,-1443.07618103,0.000129,2]
[337423941,1725661840064,-157.63939403,0.000129,2]
[337423942,1725661840075,-163.67346564,0.000129,2]
[337423943,1725661840086,-327.38518789,0.000129,2]
[337423944,1725661840098,-500.0,0.00012973,2]
[337423945,1725661840108,-499.99,0.0001299,2]
[337423946,1725661840120,-151.48,0.0001299,2]
[337423947,1725661840131,-281.47164508,0.00012999,2]
[337423948,1725661840142,-65801.21495049,0.00013,2]
[337423949,1725661840156,-5184.20181618,0.00013,2]
[337423950,1725661840247,-2348.88912486,0.00013,2]
[337423951,1725661840262,-678.18968744,0.00013,2]
[337423952,1725661840275,-1893.56,0.00013,2]
[337423953,1725661840292,-4466.88131373,0.00013,2]
[337423954,1725661840304,-2727.62255209,0.00013,2]
[337423955,1725661840327,-84571.99702213,0.00013,2]
[337423956,1725661840341,-55007.67545956,0.00013,2]
[337423960,1725661844026,-39954.02389142,0.00013,2]
[337423961,1725661844037,-987.84,0.00013,2]
[337423964,1725661846108,-19999.982619,0.00013,2]
[337423969,1725661995049,959.05,0.00010162,2]
[337423970,1725662093489,8497.19517922,0.00011942,2]
[337423971,1725662163767,-2375.13,0.00012011,2]
[337423972,1725662163798,-262.98,0.00012024,2]
[337423973,1725662163823,-20897.49,0.00012033,2]
[337423974,1725662163851,-250.0,0.00012042,2]
[337423975,1725662163876,-200.0,0.0001205,2]
[337423976,1725662167931,214.4,0.00010959,2]
[337423977,1725662167955,60.69,0.00010959,2]
[337423978,1725662263071,193.0,0.00031412,30]
[337423979,1725662263878,159.0,0.00031412,30]
[337423980,1725662332060,155.23,0.00011992,30]
[337423981,1725662402864,160.68,0.00012001,2]
[337423982,1725662413990,160.68,0.00012001,2]
[337423983,1725662480011,1885.52,0.00011714,2]
[337423984,1725662495342,911.09,9.871e-05,2]
[337423985,1725662516957,250.0,0.00011754,2]
[337423986,1725662572724,840.0,0.00011803,2]
[337423987,1725662600112,500.0,0.00011709,2]
[337423988,1725662600515,500.0,0.00024996,120]
[337423989,1725662600956,500.0,0.00026261,120]
[337423990,1725662607298,200.0,0.00011709,2]
[337423991,1725662607710,200.0,0.00026938,120]
[337423992,1725662647307,250.0,0.00011794,2]
[337423993,1725662662165,955.0,0.00031418,30]
[337423994,1725662668174,1924.86946005,0.00027,120]
[337423995,1725662703650,150.0,0.00012,2]
[337423996,1725662713823,189.61,0.00011674,2]
[337423997,1725662737955,250.0,0.00011674,2]
[337423998,1725662767823,1500.0,0.00011772,2]
[337423999,1725662768950,1599.9,0.00011824,2]
[337424000,1725662845920,742.0,0.00011824,2]
[337424001,1725662862939,193.0,0.00031418,30]
[337424002,1725662875183,154.81,0.00010959,2]
[337424003,1725662882828,-153.66,0.00012011,2]
[337424004,1725662882853,-153.66,0.00012018,2]
[337424005,1725662882878,-153.66,0.00012024,2]
[337424006,1725662882902,-153.66,0.00012031,2]
[337424007,1725662882926,-153.66,0.00012038,2]
[337424008,1725662882950,-153.66,0.00012045,2]
[337424009,1725662882973,-153.66,0.00012051,2]
[337424010,1725662883000,-153.66,0.00012058,2]
[337424011,1725662883024,-153.66,0.00012065,2]
[337424012,1725662883049,-153.66,0.00012071,2]
[337424013,1725662883075,-161.0,0.00012086,2]
[337424014,1725662883097,-29999.99,0.00012087,2]
[337424015,1725662883122,-257.12,0.00012087,2]
[337424016,1725662883146,-3259.1,0.00012087,2]
[337424017,1725662883174,-3612.46,0.00012087,2]
[337424018,1725662883198,-19999.99,0.00012087,2]
[337424277,1725663032101,-160.68,0.00012125,2]
[337424278,1725663032110,-911.09,0.00012135,2]
[337424279,1725663032119,-527.34746,0.0001287,2]
[337424280,1725663032129,-160.68,0.0001288,2]
[337424281,1725663032138,-160.68,0.0001288,2]
[337424282,1725663032147,-9057.243947,0.0001289,2]
[337424283,1725663032159,-10909.06374531,0.0001289,2]
[337424284,1725663032170,-6009.42802569,0.0001289,2]
[337424285,1725663032180,-4537.21460095,0.0001289,2]